Cogmind - Beta 10.2 @@@ ROGUE MODE // 2020.12.26 @ 21:46:31 Player: SureStep Result: Self-destructed Performance ------------- Evolutions (1) 500 Regions Visited (2) 400 Robots Destroyed (88) 440 Value Destroyed (1454) 1454 Prototype IDs (9) 180 Alien Tech Used (0) 0 Bonus (175) 175 TOTAL SCORE: 3149 Bonus ------- High Alert Combat Kills 175 Cogmind --------- Core Integrity 200/400 Matter 300/300 Energy 372/450 System Corruption 0% Temperature Cool (21) Movement Rolling (100) Location -9/Materials Parts ------- > --- POWER (1) -------- Ion Engine > --- PROPULSION (2) --- Compact Wheel > --- UTILITY (4) ------ Medium Storage Unit Medium Battery Targeting Computer > --- WEAPON (2) ------- Mini Grenade Launcher > --- INVENTORY (8) ---- Wheel Compact Wheel Compact Wheel Light EM Pulse Cannon Light EM Pulse Cannon Mini Grenade Launcher Peak State ------------ > --- POWER ------------ Improved Ion Engine > --- PROPULSION ------- Compact Wheel Compact Wheel > --- UTILITY ---------- Heat Sink Medium Storage Unit Medium Battery Targeting Computer > --- WEAPON ----------- Beam Cannon Beam Cannon > --- INVENTORY -------- Ion Engine Compact Wheel Compact Wheel Light EM Pulse Cannon Beam Cannon Mini Grenade Launcher Mini Grenade Launcher [Rating: 11] Favorites ----------- Power Ion Engine Engine Ion Engine Propulsion Compact Wheel Wheel Compact Wheel Utility Medium Storage Unit Device Heat Sink Storage Medium Storage Unit Processor Targeting Computer Weapon Beam Cannon Energy Gun EM Pulse Gun Energy Cannon Beam Cannon Launcher Mini Grenade Launcher Build | -11 -10 -9 ------- Run | Scr Mat Mat Slots Evolved 2 | . . 2 Power . | . . . Propulsion . | . . . Utility 2 | . . 2 Weapon . | . . . Parts Attached 36 | 6 15 15 Power 7 | 1 3 3 Engine 7 | 1 3 3 Core . | . . . Reactor . | . . . Propulsion 9 | 3 3 3 Treads . | . . . Leg . | . . . Wheel 9 | 3 3 3 Hover . | . . . Flight . | . . . Utility 6 | 1 2 3 Device 2 | . . 2 Storage 3 | 1 1 1 Processor 1 | . 1 . Hackware . | . . . Protection . | . . . Artifact . | . . . Weapon 14 | 1 7 6 Energy Gun 1 | 1 . . Energy Cannon 8 | . 4 4 Ballistic Gun . | . . . Ballistic Cannon . | . . . Launcher 5 | . 3 2 Special Weapon . | . . . Impact Weapon . | . . . Slashing Weapon . | . . . Piercing Weapon . | . . . Special Melee Weapon . | . . . Unidentified Prototypes . | . . . Parts Lost 7 | . 1 6 Power 1 | . . 1 Propulsion 2 | . 1 1 Utility 1 | . . 1 Weapon 3 | . . 3 Highest Loss Streak 2 | . 1 2 Average Slot Usage (%) 92 | . 91 93 Engine 12 | . 13 11 Wheel 24 | . 27 21 Device 3 | . . 5 Storage 18 | . 14 22 Processor 9 | . 8 11 Energy Cannon 13 | . 13 14 Launcher 9 | . 12 7 Naked Turns . | . . . Heaviest Build 24 | 11 19 24 Greatest Support 32 | 32 32 32 Greatest Overweight (x) 3 | . 3 . Average Overweight (x) . | . . . Largest Inventory Capacity 10 | 6 10 8 Average Capacity 7 | 5 7 8 Most Carried 8 | 4 8 8 Average Carried 5 | . 6 5 Final Capacity 8 | 6 8 8 Final Carried 6 | 1 6 6 Class Distribution -------------------- 52% | Mutant 47% | Scavenger-Mutant Dominant Class ---------------- Mutant | -10/Materials Scavenger-Mutant | -9/Materials Resources | -11 -10 -9 ----------- Run | Scr Mat Mat Matter Collected 1130 | 260 180 690 Remotely . | . . . Salvage Created 2245 | 60 439 1746 Parts 168 | 3 38 127 Haulers Intercepted 6 | . 1 5 Recyclers Shooed 6 | . 2 4 Parts Field Recycled . | . . . Retrieved Matter . | . . . Parts Self-Destructed . | . . . Prevented . | . . . Kills | -11 -10 -9 ------- Run | Scr Mat Mat Combat Hostiles Destroyed 42 | . 10 32 Cannons 20 | . 5 15 AOE 22 | . 5 17 Classes Destroyed 11 | 1 6 4 Worker 12 | . 2 10 Builder 11 | . 2 9 Tunneler 1 | . . 1 Hauler 6 | . 1 5 Recycler 10 | 1 2 7 Mechanic 1 | . . 1 Operator 1 | . 1 . Watcher 4 | . . 4 Swarmer 19 | . 6 13 Grunt 19 | . 4 15 Sentry 4 | . . 4 Best Kill Streak 16 | 1 6 16 Combat Bots Only 7 | . 3 7 Max Kills in Single Turn 5 | 1 3 5 Gunslinging . | . . . Exploded 3 | . 1 3 Melee . | . . . Uniques/NPCs Destroyed . | . . . Combat | -11 -10 -9 -------- Run | Scr Mat Mat Damage Taken 1121 | . 299 822 Core 303 | . 103 200 Absorbed by Shields . | . . . Core Remaining (%) 79 | 100 58 . Volleys Fired 133 | 6 31 96 Largest 2 | 1 2 2 Hottest 120 | 40 90 120 Shots Fired 210 | 6 52 152 Gun 6 | 6 . . Cannon 144 | . 31 113 Launcher 60 | . 21 39 Special . | . . . Kinetic . | . . . Thermal 93 | . 31 62 Explosive 60 | . 21 39 Electromagnetic 57 | 6 . 51 Robot Hit Streak 10 | 2 7 10 Robot Miss Streak 3 | 2 3 3 Penetration Max . | . . . Secondary Targets . | . . . Shots Hit Robots 111 | 3 23 85 Core Hits 116 | 2 25 89 Critical Hits 2 | . . 2 Critical Kills . | . . . Critical Parts Destroyed 2 | . . 2 Melee Attacks . | . . . Impact . | . . . Slashing . | . . . Piercing . | . . . Sneak Attacks . | . . . Combat Hostiles . | . . . Follow-up Attacks . | . . . Damage Inflicted 5181 | 40 1021 4120 Guns 40 | 40 . . Cannons 1663 | . 333 1330 Explosions 3478 | . 688 2790 Melee . | . . . Ramming . | . . . Kinetic . | . . . Thermal 1041 | . 333 708 Explosive 3319 | . 688 2631 Electromagnetic 821 | 40 . 781 Impact . | . . . Slashing . | . . . Piercing . | . . . Highest Corruption . | . . . Average Corruption . | . . . Corruption Purged . | . . . Overload Shots . | . . . Overflow Damage 172 | . 42 130 Projectiles 31 | . . 31 Explosions 141 | . 42 99 Melee . | . . . Knockbacks . | . . . Impact . | . . . Kinetic . | . . . Secondary . | . . . Self-Inflicted Damage 235 | . 80 155 Shots 9 | . 3 6 Rammed . | . . . Targets Rammed . | . . . Kicked . | . . . Crushed . | . . . Highest Temperature 210 | 20 210 120 Average Temperature 36 | 20 53 28 Received Heat Transfer 255 | . 54 201 Siege Activations . | . . . Robots Corrupted 1 | . . 1 Combat Hostiles . | . . . Parts Fried 3 | . . 3 Impact Corruptions . | . . . Robots Melted . | . . . Combat Hostiles . | . . . Parts Melted 3 | . 1 2 Heat Transferred 2100 | . 703 1397 Parts Sabotaged . | . . . Parts Stolen . | . . . Parts Stripped . | . . . Power Chain Reactions 3 | . . 3 Missiles Intercepted . | . . . Alert | -11 -10 -9 ------- Run | Scr Mat Mat Peak Influence 1026 | 5 259 1026 Initial 53 | . 3 53 Average 316 | 2 147 451 Maximum Alert Level 3 | . 1 3 Low Security (%) 55 | 100 85 32 Level 1 10 | . 14 8 Level 2 19 | . . 34 Level 3 14 | . . 25 Level 4 . | . . . Level 5 . | . . . High Security . | . . . Max Security . | . . . Squads Dispatched 6 | . 1 5 Investigation 3 | . 1 2 Extermination . | . . . Reinforcement 2 | . . 2 Assault 1 | . . 1 Garrison . | . . . Intercept . | . . . Construction Impeded 1 | . . 1 Haulers Reinforced . | . . . Stealth | -11 -10 -9 --------- Run | Scr Mat Mat Distress Signals 3 | . . 3 Communications Jammed . | . . . Distress Signals . | . . . Times Spotted 69 | . 17 52 Peak Tracking Total 7 | . 3 7 Tactical Retreats 8 | . . 8 Traps | -11 -10 -9 ------- Run | Scr Mat Mat Traps Triggered 3 | . 3 . Indirectly . | . . . Trap Hack Attempts . | . . . Triggered . | . . . Disarmed 6 | . 6 . Reprogrammed . | . . . Reused . | . . . Traps Extracted . | . . . Installed . | . . . Triggered . | . . . Machines | -11 -10 -9 ---------- Run | Scr Mat Mat Machines Disabled 17 | . 6 11 Max in Single Turn 2 | . 2 1 Machines Sabotaged . | . . . Garrisons Compromised . | . . . Overloaded Fab Kills . | . . . Fab Network Shutdowns . | . . . Hacking | -11 -10 -9 --------- Run | Scr Mat Mat Machines Accessed 13 | . 7 6 Terminals 10 | . 6 4 Fabricators . | . . . Repair Stations 2 | . 1 1 Recycling Units . | . . . Scanalyzers 1 | . . 1 Garrison Access . | . . . Total Hacks 42 | . 24 18 Successful 28 | . 16 12 Failed 14 | . 8 6 Catastrophic 6 | . 4 2 Database Lockouts . | . . . Manual . | . . . Terminals 28 | . 19 9 Fabricators . | . . . Repair Stations 8 | . 5 3 Recycling Units . | . . . Scanalyzers 6 | . . 6 Garrison Access . | . . . Terminal Hacks 15 | . 11 4 Prototype ID Bank 5 | . 3 2 Branch Access Points 1 | . 1 . Emergency Access Points 1 | . 1 . Locate Traps 3 | . 3 . Disarm Traps 1 | . 1 . Recall Reinforcements 1 | . . 1 Hauler Manifests 2 | . 2 . Zone Layout 1 | . . 1 Fabricator Hacks . | . . . Repair Station Hacks 7 | . 5 2 Scan Component 5 | . 3 2 Repair 2 | . 2 . Recycling Unit Hacks . | . . . Scanalyzer 6 | . . 6 Insert Component 3 | . . 3 Analyze 3 | . . 3 Garrison Access Hacks . | . . . Unauthorized Hacks . | . . . Terminals . | . . . Fabricators . | . . . Repair Stations . | . . . Recycling Units . | . . . Scanalyzers . | . . . Garrison Access . | . . . Data Cores Recovered 1 | . 1 . Used 1 | . 1 . Hacking Detections 8 | . 3 5 Full Trace Events 6 | . 3 3 Feedback Events . | . . . Feedback Blocked . | . . . Robot Schematics Acquired . | . . . Robots Built . | . . . Matter . | . . . Time . | . . . Total Robot Build Rating . | . . . Part Schematics Acquired 3 | . . 3 Parts Built . | . . . Matter . | . . . Time . | . . . Total Part Build Rating . | . . . Parts Repaired 2 | . 2 . Time 52 | . 52 . Parts Recycled . | . . . Recycled Matter . | . . . Retrieved Matter . | . . . Retrieved Components . | . . . Parts Scanalyzed 3 | . . 3 Part Schematics Acquired 3 | . . 3 Parts Damaged . | . . . Bothacking | -11 -10 -9 ------------ Run | Scr Mat Mat Used RIF Installer . | . . . Robots Hacked . | . . . Non-combat . | . . . Combat . | . . . Robot Hacks Applied . | . . . Relay Couplers Released . | . . . Robots Rewired . | . . . Allies Hacked . | . . . Hacks Repelled . | . . . Allies | -11 -10 -9 -------- Run | Scr Mat Mat Total Allies . | . . . Largest Group . | . . . Highest-Rated Group . | . . . Highest-Rated Ally . | . . . Total Orders . | . . . Ally Attacks . | . . . Total Damage . | . . . Kills . | . . . Allies Corrupted . | . . . Allies Melted . | . . . Intel | -11 -10 -9 ------- Run | Scr Mat Mat Robot Analysis Total . | . . . Derelict Logs Recovered . | . . . Drone Launches . | . . . Drone Recoveries . | . . . Exploration | -11 -10 -9 ------------- Run | Scr Mat Mat Turns Passed 2269 | 56 929 1284 Spaces Moved 1668 | 36 741 891 Core 9 | 7 2 . Treads . | . . . Legs . | . . . Wheels 1659 | 29 739 891 Hover . | . . . Flight . | . . . Fastest Speed 50 | 50 100 100 Average Speed 99 | 85 100 100 Slowest Speed 200 | 100 200 100 Overloaded Moves . | . . . Propulsion Burnouts . | . . . Robots Hopped . | . . . Cave-ins Triggered . | . . . Exploration Rate (%) 49 | 3 90 56 Regions Visited 2 Branch Regions . Pre-discovered Areas . | . . . Known Exits Taken . | . . . Unknown Exits Taken 2 | 1 1 . Scrap Searched . | . . . Spaces Dug . | . . . Terrain Destroyed 320 | . 103 217 Melee . | . . . Projectile . | . . . AOE 320 | . 103 217 Terrain Rammed . | . . . Walls Destroyed . | . . . Machines Disabled . | . . . Actions | -11 -10 -9 --------- Run | Scr Mat Mat Total 2074 | 56 878 1140 Wait 172 | . 64 108 Move 1666 | 35 740 891 Hop . | . . . Pick Up 40 | 7 20 13 Fast Attach . | . . . Attach 35 | 6 15 14 Detach 14 | 1 4 9 Swap 1 | . . 1 Drop 13 | 1 4 8 Fire 133 | 6 31 96 Melee . | . . . Ram . | . . . Kick . | . . . Crush . | . . . Escape Stasis . | . . . Rewire . | . . . Trap . | . . . Miscellaneous . | . . . Route ------- -11/Scrapyard -10/Materials (discovered 5 exits: *Mat x3 / *Min x2) -9/Materials (discovered 1 exit: [*Min]) History --------- Turn | Location | Event 31 | -11/Scrapyard | Discovered new exit (range 16) 57 | -11/Scrapyard | Entered Materials 124 | -10/Materials | Identified exit to Mines 183 | -10/Materials | Discovered new exit (range 12) 317 | -10/Materials | Build established: Mutant 602 | -10/Materials | Discovered new exit (range 4) 658 | -10/Materials | Repaired Grenade Launcher 733 | -10/Materials | Discovered new exit (range 11) 963 | -10/Materials | Repaired Beam Cannon 986 | -10/Materials | Entered another Materials area 986 | -9/Materials | Evolved 2 slots: Utility x2 1185 | -9/Materials | Build established: Scavenger-Mutant 1471 | -9/Materials | Discovered new exit (range 17) 1528 | -9/Materials | Destroyed 7 combat bots 1829 | -9/Materials | Build established: Mutant 2140 | -9/Materials | Build established: Scavenger-Mutant 2186 | -9/Materials | First assault squad dispatched 2270 | -9/Materials | Self-destructed Last Messages --------------- S-10 Pest destroyed. Y-45 Defender destroyed. Acquired 48 matter. Acquired 17 matter. R-06 Scavenger destroyed. Acquired 10 matter. U-05 Engineer lays Concrete. Acquired Com. Wheel. G-34 Mercenary destroyed. Acquired 10 matter. C-30 ARC bursts open, deploying its payload. G-47 Trooper unfolds itself. B-36 Bruiser unfolds itself. G-34 Mercenary unfolds itself. I-25 Savior unfolds itself. Lgt. EM Pulse Cannon destroyed. Destroyed Lgt. EM Pulse Cannon. Com. Wheel destroyed. Destroyed Com. Wheel. The unstable cave ceiling collapses. Map ----- +----------------------------------------------------+ | ####+###??# # """ ## #??????? | | #### #????# # """ #? !! #???????? | | ##???# # #?## ## #???????? | | #???#""" # """ ### % #???????? | | #???#""" # """ ## #????????? | | #####?#""" # """ ## #????????? | | % !"!""#?# # ## = #????????? | | [* "!"!" #?#####+####% ### % #????????? | | !# ##### """# * [ #????????? | | ] != =%* #????????? | | < **= =% #????????? | | ""#????????? | | # %! Y"#????????? | | ####### # """ """ """ "" ""#????????? | | """ """ """ """ #???????? | | """ """ """ """ #???????? | | #???????? | | #???????? | | ###### ########## #???????? | | # ##??????# u #############???????? | | T # " "" ###??#### #??????????????????? | | ] ## ### ## # # ########????????????? | | = # i # #????????????? | | ] + %=g g% # #????????????? | | ] # """ %b # #????????????? | | # ###########"R %@ + / ??????????? | | # # * #""" % # ####?????????? | | # #[ ] # "" # / #????????????? | | # # # # #?######????????????? | | ### " """" ######## #???????????????????? | | # ### """"" # # #???????????????????? | | ###?# # """"" # # #???????????????????? | | #???##### """"""" # """ + % +???????????????????? | | #???????# """"""" # """ # # ??????????????????? | | #???????########### """ # # ?????????????????? | | #?????????????????# # #?##????????????????? | | #?????????????????########^ #???????????????????? | | #????????????????????????# #???????????????????? | | #????????????????????????# #???????????????????? | | #????????????????????????? +???????????????????? | | ?????????????????????????? #???????????????????? | | ########?????????????????? #???????????????????? | | #?????????????????? #???????????????????? | | """ #?????????????????? ???????????????????? | | """""#?????????????????? ???????????????????? | | """""#?????????????????? ????????????????????? | | """""#?????????????????????????????????????????? | | """ #?????????????????????????????????????????? | | #?????????????????????????????????????????? | | #?????????????????????????????????????????? | +----------------------------------------------------+ Best States ------------- Heat Dissipation 38 Energy Generation 12 Energy Capacity 465 Matter Stores 300 Matter Capacity 300 Sight Range 16 Terrain Scan Density 10 Evasion (%) 42 Targeting Accuracy 5 Item Schematics ----------------- Com. Wheel | -9/Materials | Scanalyzed Mni. Grenade Launcher | -9/Materials | Scanalyzed Beam Cannon | -9/Materials | Scanalyzed Robot Schematics ------------------ None Fabricated ------------ Nothing Alien Tech Used ----------------- None Achievements -------------- None Challenges ------------ None Game ------ Seed PortableDiametricCorpse Manual? 0 Play Time 00:47:52 Cumulative 21.4 hours Start 2020.12.26 @ 20:57:13 End 2020.12.26 @ 21:46:31 Sessions 1 Manual Loads 0 Difficulty Rogue Special Mode None Game No. 27 Rogue 27 Adventurer 0 Explorer 0 Win Type - Total 0 Types 0/0/0/0/0/0/0/0/0 Lore% 10 Gallery% 15 Achievement% 14 Wizard Run 0 Options --------- ASCII 0 Keyboard 0 Movement Mouse Keybinds 0 Fullscreen 1 Font 18/SmallcapsGlow Map View 76x50 Tactical HUD 0 Map Filters NONE Filters NONE Steam 1 RUN: 12fc69f8-9644-4c48-982d-9b4494c143a8